bitfinex-derivatives/quotes_ETHF0:USTF0_20250912
["timestamp","ask_amount","ask_price","bid_price","bid_amount"]
[1757639818221,1.26718546,4534.2,4533.5,0.5488]
[1757639818222,0.715,4533.9,4533.5,0.5488]
[1757639818424,0.715,4533.9,4533.5,0.1611]
[1757639818626,0.505,4533.9,4533.8,0.6293]
[1757639819128,0.2448,4534.1,4534.0,0.1477]
[1757639819430,0.9874337,4534.1,4534.0,0.777]
[1757639820427,0.5146337,4534.1,4534.0,1.0376]
[1757639820933,0.228,4534.2,4534.1,0.8899]
[1757639821122,3.4178,4534.8,4534.1,0.8899]
[1757639821329,0.73503801,4534.7,4534.2,0.3877]
[1757639821527,0.74250801,4534.6,4534.5,0.1477]
[1757639821724,1.24750801,4534.6,4534.5,0.3877]
[1757639822031,0.715,4533.8,4533.6,0.3877]
[1757639822230,0.3869,4533.6,4532.5,3.3555]
[1757639822530,0.2448,4532.6,4532.5,3.8577]
[1757639823130,0.3869,4533.0,4532.5,3.8577]
[1757639823331,0.205,4533.3,4532.5,3.8577]
[1757639823732,0.51511787,4533.2,4532.5,3.8577]
[1757639823920,0.51511787,4533.1,4532.5,3.8577]
[1757639824120,0.205,4533.3,4532.5,3.8577]
[1757639824329,0.2448,4532.7,4532.6,0.6293]
[1757639824722,0.8919,4532.7,4532.6,0.6293]
[1757639824924,0.8919,4532.6,4532.5,3.2078]
[1757639825123,1.40707646,4532.6,4532.5,3.2078]
[1757639825932,1.40707646,4532.6,4532.5,3.4494]
[1757639826136,1.40707646,4532.6,4532.5,3.8371]
[1757639828131,1.02017646,4532.6,4532.5,4.0977]
[1757639828332,1.40707646,4532.6,4532.5,4.0977]
[1757639828530,0.1465,4532.5,4532.1,0.3877]
[1757639828836,0.8919,4531.1,4530.9,3.2078]
[1757639829031,1.1199,4531.0,4530.9,3.2078]
[1757639829232,1.1199,4531.0,4530.0,0.1477]
[1757639829233,0.3869,4530.9,4530.4,3.2078]
[1757639829534,0.51491388,4530.8,4530.5,0.3877]
[1757639829734,0.51491388,4530.7,4530.5,0.3877]
[1757639829937,0.3869,4530.6,4530.5,0.3877]
[1757639830341,0.3869,4530.9,4530.4,3.2078]
[1757639830541,0.9014944,4530.8,4530.4,3.2078]
[1757639830730,0.3869,4530.8,4530.5,0.3877]
[1757639831136,0.3869,4530.9,4530.5,0.3877]
[1757639831340,0.3745,4531.0,4530.5,0.3877]
[1757639831538,0.3869,4530.9,4530.5,0.3877]
[1757639831733,0.3745,4531.0,4530.5,0.3877]
[1757639832343,0.3869,4530.7,4530.5,0.3877]
[1757639832750,0.2448,4531.0,4530.9,0.8899]
[1757639832950,1.63398493,4531.0,4530.9,0.8899]
[1757639833150,1.63398493,4531.0,4530.9,0.6293]
[1757639833351,0.3869,4530.6,4530.4,3.5955]
[1757639833647,0.88858493,4531.0,4530.0,0.1477]
[1757639833648,0.3869,4530.4,4530.0,0.1477]
[1757639833851,0.2448,4530.1,4530.0,0.6499]
[1757639834444,0.2448,4530.1,4530.0,1.0376]
[1757639834657,0.3745,4530.5,4529.9,3.2078]
[1757639834844,0.3745,4530.5,4529.6,0.3877]
[1757639834845,0.3869,4530.3,4529.6,0.3877]
[1757639835646,3.3838,4530.4,4530.1,0.3877]
[1757639835846,0.176,4530.4,4530.0,0.1477]
[1757639836145,0.3869,4530.2,4530.0,0.3877]
[1757639836348,0.3869,4530.2,4529.6,0.3877]
[1757639836544,0.228,4530.3,4529.4,3.2078]
[1757639836749,0.1465,4530.0,4529.4,3.2078]
[1757639836946,0.5334,4530.0,4529.4,3.2078]
[1757639837544,0.3869,4530.0,4529.4,3.2078]
[1757639837856,0.3869,4530.2,4529.6,0.3877]
[1757639838054,0.51324487,4530.1,4529.6,0.3877]
[1757639838351,0.228,4530.0,4529.6,0.3877]
[1757639838750,0.228,4530.0,4529.9,3.5955]
[1757639839150,3.2078,4530.9,4530.6,0.3877]
[1757639839355,0.228,4530.8,4530.6,0.3877]
[1757639839551,0.228,4530.8,4530.5,0.1477]
[1757639839950,0.228,4530.8,4530.6,0.3877]
[1757639840148,0.228,4530.8,4530.5,0.1477]
[1757639840556,0.228,4530.7,4530.6,0.3877]
[1757639840956,0.3869,4530.6,4530.0,0.1477]
[1757639841457,0.3869,4530.4,4529.8,3.2078]
[1757639841756,0.3869,4530.3,4529.8,3.5955]
[1757639841947,3.2078,4530.4,4529.8,3.2078]
[1757639842144,3.2078,4530.4,4529.2,0.3877]
[1757639842348,0.3869,4530.3,4529.2,0.3877]
[1757639842754,0.3869,4530.3,4529.1,3.2078]
[1757639842954,0.3869,4529.7,4529.1,3.2078]
[1757639843154,0.228,4529.6,4529.1,3.2078]
[1757639843358,0.3869,4529.5,4529.1,3.2078]
[1757639843658,3.5947,4530.4,4529.6,0.3877]
[1757639843858,3.5947,4530.4,4529.7,3.2078]
[1757639843859,0.51245444,4530.3,4529.7,3.2078]
[1757639844057,0.51245444,4530.3,4530.0,0.1477]
[1757639844058,0.51245444,4530.2,4530.0,0.1477]
[1757639844255,0.228,4531.0,4530.1,0.3877]
[1757639844450,3.7201193,4530.9,4530.2,3.2078]
[1757639844660,0.3869,4530.7,4529.6,3.5955]
[1757639844861,0.3869,4530.3,4529.6,3.5955]
[1757639845159,0.74038604,4530.2,4529.6,0.3877]
[1757639845360,0.3869,4530.0,4529.2,0.3877]
[1757639845560,0.228,4530.2,4529.2,0.3877]
[1757639845853,0.51233563,4530.1,4529.2,0.3877]
[1757639846059,1.04574681,4530.0,4529.2,0.3877]
[1757639846261,0.3869,4529.8,4529.2,0.3877]
[1757639846556,1.12735205,4529.7,4529.1,0.3877]
[1757639846755,0.3869,4529.5,4529.1,0.3877]
[1757639846954,0.3869,4529.5,4528.6,3.2078]
[1757639846955,0.3869,4529.4,4528.7,0.3877]
[1757639847152,0.3869,4529.4,4528.0,3.3555]
[1757639847153,0.3869,4529.2,4528.0,3.3555]
[1757639847350,5.43493842,4529.3,4528.0,3.2078]
[1757639847351,3.2078,4528.9,4528.0,3.2078]
[1757639847556,3.2078,4528.9,4526.5,0.1477]
[1757639847557,0.3597,4528.4,4527.5,3.3555]
[1757639847749,0.74047635,4528.3,4527.5,3.3555]
[1757639847955,0.51247635,4528.2,4527.5,3.3555]
[1757639848862,0.51247635,4528.2,4527.6,0.375]
[1757639850060,0.5141,4528.0,4527.6,0.375]
[1757639850265,0.51247635,4527.9,4527.5,3.2078]
[1757639850464,3.2078,4528.4,4527.6,0.375]
[1757639850675,0.228,4528.2,4528.1,0.375]
[1757639850960,0.228,4528.2,4527.5,0.1519]
[1757639850961,0.5141,4528.0,4527.5,3.2078]
[1757639851167,0.5141,4528.0,4527.0,0.5227]
[1757639851168,0.3597,4527.8,4527.0,3.5828]
[1757639851358,0.51247848,4527.7,4527.0,3.5828]
[1757639851663,0.51247848,4527.7,4527.5,3.3597]
[1757639851863,0.228,4527.9,4527.5,3.3597]
[1757639852161,0.3597,4527.7,4527.0,3.2078]
[1757639852367,0.3597,4527.4,4527.0,3.2078]
[1757639852660,0.1544,4527.5,4527.0,3.5828]
[1757639852661,0.3597,4527.2,4527.0,3.5828]
[1757639852864,0.51265077,4527.1,4527.0,3.5828]
[1757639853268,0.87235077,4527.1,4527.0,3.5828]
[1757639853662,0.3597,4527.1,4527.0,3.5828]
[1757639855068,0.228,4527.3,4527.0,3.5828]
[1757639855267,0.228,4527.2,4527.1,0.375]
[1757639856263,0.3597,4528.3,4527.1,4.0]
[1757639856464,0.3597,4528.3,4527.0,3.3597]
[1757639856465,0.74107177,4528.2,4528.0,0.1519]
[1757639856766,0.228,4528.2,4528.1,0.375]
[1757639856966,0.51300887,4528.3,4528.1,0.375]
[1757639857167,0.51300887,4528.2,4528.1,0.375]
[1757639857360,0.228,4528.3,4528.1,0.375]
[1757639857968,0.228,4528.3,4528.0,3.3597]
[1757639858267,0.51374745,4528.2,4528.1,0.375]
[1757639858669,0.51374745,4528.2,4528.1,4.375]
[1757639858865,31.803,4528.8,4528.5,0.1519]
[1757639859166,0.228,4528.6,4528.5,0.5269]
[1757639859366,0.74186594,4528.6,4528.0,3.3597]
[1757639859564,0.3597,4528.4,4528.0,3.3597]
[1757639860169,0.5877,4528.6,4528.1,0.375]
[1757639860370,0.51387958,4528.5,4528.0,3.3597]
[1757639860572,0.228,4528.6,4528.1,0.375]
[1757639860772,0.51397899,4528.5,4528.1,0.375]
[1757639860976,0.228,4528.6,4528.1,0.375]
[1757639861169,0.51397899,4528.5,4528.1,0.375]
[1757639861469,0.228,4528.6,4528.1,0.375]
[1757639861770,0.51409201,4528.5,4528.1,0.375]
[1757639861968,0.228,4528.6,4528.1,0.375]
[1757639862168,0.228,4528.6,4528.0,3.3597]
[1757639862169,0.3597,4528.4,4528.0,3.3597]
[1757639863268,0.228,4528.3,4528.0,3.3597]
[1757639863670,0.51440308,4528.2,4528.1,0.375]
[1757639864164,0.228,4528.3,4528.1,0.375]
[1757639864571,0.228,4528.3,4528.0,3.3597]
[1757639864975,0.228,4528.3,4528.1,0.375]
[1757639865272,0.51453723,4528.2,4528.1,0.8686]
[1757639866076,0.228,4528.3,4528.2,0.375]
[1757639866268,0.228,4528.3,4528.2,0.8686]
[1757639866668,31.803,4528.8,4528.7,0.8686]
[1757639866873,32.54565144,4528.8,4528.7,0.8686]
[1757639867277,0.74265144,4528.8,4528.7,0.8686]
[1757639867864,0.74265144,4528.8,4528.7,0.4936]
[1757639868065,0.74265144,4528.8,4528.0,22.2877]
[1757639868066,0.3597,4528.1,4528.0,3.2078]
[1757639868367,0.5877,4528.1,4528.0,3.2078]
[1757639868571,1.10235144,4528.1,4528.0,3.2078]
[1757639869274,4.96350144,4528.1,4527.5,0.5269]
[1757639869480,6.10683079,4527.6,4527.0,0.1519]
[1757639869772,3.2078,4527.2,4527.0,0.1519]
[1757639869978,0.74265144,4527.1,4527.0,0.1519]
[1757639871077,0.74265144,4527.1,4526.5,0.1519]
[1757639871078,9.66511351,4527.1,4526.5,0.1519]
[1757639871281,0.51465144,4527.0,4526.5,0.1519]
[1757639871572,1.18436872,4526.9,4526.5,0.1519]
[1757639871766,0.51465144,4527.0,4526.5,0.1519]
[1757639871767,1.69902016,4526.8,4526.5,0.1519]
[1757639871971,5.15046207,4527.1,4526.6,0.375]
[1757639871972,0.74265144,4526.7,4526.6,0.375]
[1757639872876,0.74265144,4526.7,4526.3,0.375]
[1757639873085,4.92246207,4526.4,4526.0,0.1519]
[1757639873378,0.74265144,4526.3,4526.1,0.375]
[1757639873579,0.51465144,4526.2,4526.1,0.375]
[1757639875876,0.74265144,4526.2,4526.1,0.375]
[1757639876679,0.11445144,4526.2,4526.1,0.375]
[1757639876886,3.2078,4527.0,4526.5,0.1519]
[1757639877077,0.228,4526.9,4526.6,0.375]
[1757639877383,0.228,4526.9,4526.5,0.1519]
[1757639877583,0.228,4526.9,4526.6,0.3793]
[1757639879183,3.2078,4527.5,4527.1,0.3793]
[1757639879485,0.228,4527.4,4527.1,0.3793]
[1757639879984,0.228,4527.4,4527.0,0.1504]
[1757639880287,0.228,4527.4,4527.1,0.3793]
[1757639880489,0.228,4527.4,4527.0,0.1504]
[1757639880784,3.2078,4527.5,4527.0,0.1504]
[1757639880979,0.228,4527.4,4527.1,0.3793]
[1757639881580,0.2574,4527.3,4526.5,3.739]
[1757639882682,4.92246207,4526.6,4526.5,0.3793]
[1757639882885,5.40786207,4526.6,4526.0,0.1519]
[1757639883084,3.2078,4526.5,4526.0,0.1519]
[1757639883288,3.2078,4526.5,4526.1,0.3793]
[1757639883289,0.228,4526.4,4526.1,0.3793]
[1757639883487,0.228,4526.3,4526.1,0.3793]
[1757639884088,3.4358,4526.5,4526.1,0.3793]
[1757639885689,0.228,4526.5,4526.1,0.3793]
[1757639886088,0.228,4526.5,4526.0,0.1519]
[1757639886289,0.228,4526.5,4526.1,0.3793]
[1757639886680,0.4854,4526.5,4526.1,0.3793]
[1757639886879,3.6932,4526.5,4526.0,0.1519]
[1757639887279,3.6932,4526.5,4526.1,0.3793]
[1757639887491,3.4358,4526.5,4526.1,0.3793]
[1757639887691,3.4358,4526.5,4526.0,0.1519]
[1757639888492,0.228,4526.4,4526.1,0.3793]
[1757639888794,0.51243307,4526.3,4526.1,0.3793]
[1757639889086,0.51243307,4526.2,4526.1,0.3793]
[1757639889992,0.2574,4526.1,4525.6,0.3793]
[1757639890197,0.74043307,4526.0,4525.6,0.3793]
[1757639890393,0.51243307,4525.9,4525.6,0.3793]
[1757639890593,0.2574,4525.8,4525.6,0.3793]
[1757639890794,0.228,4525.7,4525.6,0.3793]
[1757639891587,0.4854,4525.7,4525.6,0.3793]
[1757639891791,0.99803634,4525.7,4525.6,0.3793]
[1757639892496,0.74063634,4525.7,4525.6,0.3793]
[1757639892890,1.23923634,4525.7,4525.6,0.3793]
[1757639893798,1.23923634,4525.7,4525.6,0.6237]
[1757639894194,0.228,4525.7,4525.6,0.8878]
[1757639894692,3.2078,4526.1,4525.7,0.3793]
[1757639894891,0.4986,4525.9,4525.8,0.6237]
[1757639895096,35.0358,4526.7,4525.8,0.5085]
[1757639895292,35.0358,4526.7,4525.5,0.1519]
[1757639895293,0.99831315,4526.6,4525.9,0.3793]
[1757639895492,0.2574,4526.4,4526.1,0.3793]
[1757639895700,0.74091315,4526.3,4526.1,0.3793]
[1757639895897,0.77031315,4526.2,4526.1,0.3793]
[1757639896200,3.97811315,4526.2,4525.6,0.3793]
[1757639896504,0.51291315,4526.1,4525.5,0.1519]
[1757639896703,0.228,4526.0,4525.6,0.3793]
[1757639896997,0.51291315,4525.9,4525.6,0.3793]
[1757639897198,0.228,4525.8,4525.6,0.3793]
[1757639897798,0.228,4525.8,4525.7,0.5085]
[1757639897999,0.74194285,4525.8,4525.7,0.8878]
[1757639900498,1.24054285,4525.8,4525.7,0.8878]
[1757639900700,1.24054285,4525.8,4525.7,0.6237]
[1757639901097,0.99894285,4525.8,4525.7,0.8878]
[1757639901405,0.99894285,4525.8,4524.5,0.1504]
[1757639901406,0.4986,4525.6,4524.5,0.1504]
[1757639901700,0.1504,4524.5,4522.8,1.70901297]
[1757639901906,4.92246207,4522.9,4522.5,0.1504]
[1757639902101,0.51488429,4522.8,4522.0,0.1504]
[1757639902402,4.92246207,4522.3,4522.0,0.1504]
[1757639902595,0.71785085,4522.2,4522.0,0.1504]
[1757639902795,3.92565085,4522.1,4522.0,0.1504]
[1757639903205,3.92565085,4522.1,4522.0,4.1504]
[1757639903401,3.92565085,4522.1,4522.0,4.3814]
[1757639903606,3.2078,4522.6,4522.5,0.1504]
[1757639903905,0.18794178,4522.6,4522.5,0.7607]
[1757639904100,0.18794178,4522.6,4522.5,4.7607]
[1757639904400,0.2211,4522.7,4522.6,0.3793]
[1757639905394,0.2211,4522.7,4522.6,4.6103]
[1757639906192,3.2078,4523.1,4523.0,0.5297]
[1757639906404,3.2078,4524.0,4523.1,0.3793]
[1757639906906,3.2078,4524.0,4523.6,0.3793]
[1757639907205,3.5794,4524.0,4523.7,0.231]
[1757639907406,0.18747639,4523.9,4523.7,0.231]
[1757639907706,3.2078,4524.0,4523.8,0.4237]
[1757639907895,0.1874767,4523.9,4523.8,0.4237]
[1757639908300,3.2078,4524.0,4523.8,0.4237]
[1757639908500,3.2078,4524.0,4523.5,0.1504]
[1757639908700,3.2078,4524.0,4523.7,0.4237]
[1757639908907,3.2078,4524.0,4523.6,0.4237]
[1757639909206,0.18746113,4523.9,4523.7,0.6547]
[1757639909407,3.6193,4524.0,4523.7,0.231]
[1757639909599,0.18747135,4523.9,4523.8,0.4237]
[1757639910209,3.2078,4525.0,4524.0,0.1647]
[1757639910410,3.2078,4525.0,4524.1,0.4237]
[1757639910704,3.2078,4524.5,4524.1,0.4237]
[1757639910909,0.4115,4524.4,4523.6,0.4237]
[1757639911110,0.4115,4524.4,4523.4,0.231]
[1757639911111,3.2078,4523.8,4523.4,0.231]
[1757639911407,3.2078,4523.8,4523.6,0.4237]
[1757639911615,3.2078,4523.8,4523.5,0.1647]
[1757639912022,3.2078,4523.8,4523.6,0.4237]
[1757639912418,3.2078,4523.8,4523.7,0.6547]
[1757639914823,1.18436872,4524.5,4523.7,0.231]
[1757639915014,3.2078,4524.6,4523.8,0.4237]
[1757639915626,0.57108855,4524.5,4524.0,0.1647]
[1757639915922,0.57108855,4524.4,4524.2,0.4237]
[1757639916123,0.57108855,4524.3,4524.2,0.4237]
[1757639916622,0.57108855,4524.3,4524.2,0.6547]
[1757639918523,0.57108855,4524.3,4524.2,0.4237]
[1757639918720,0.57108855,4524.3,4524.2,0.6547]
[1757639919623,0.57108855,4524.3,4524.2,0.4237]
[1757639919825,0.57108855,4524.3,4524.2,0.6547]
[1757639920326,3.2078,4524.6,4524.5,0.1647]
[1757639920523,3.77945965,4524.6,4524.5,0.5884]
[1757639920723,4.19095965,4524.6,4524.5,0.23]
[1757639921316,4.19095965,4524.6,4524.0,0.5884]
[1757639921518,0.4115,4524.4,4524.2,0.4237]
[1757639921720,0.5717983,4524.3,4524.2,0.4237]
[1757639922031,0.9832983,4524.3,4524.2,0.6537]
[1757639922321,0.5717983,4524.3,4524.2,0.6537]
[1757639923228,0.5717983,4524.3,4524.2,0.4237]
[1757639923526,0.5717983,4524.3,4524.2,0.6537]
[1757639923727,0.5717983,4524.3,4524.2,0.4237]
[1757639923918,0.5717983,4524.3,4524.2,0.6537]
[1757639924120,0.5717983,4524.3,4524.2,0.4237]
[1757639924527,0.5717983,4524.3,4524.2,0.6537]
[1757639924824,0.9832983,4524.3,4523.6,0.4237]
[1757639925030,0.4115,4523.9,4523.8,0.4237]
[1757639925230,0.5717983,4523.9,4523.8,0.4237]
[1757639925433,3.7797,4524.5,4523.8,0.4237]
[1757639925632,0.5721337,4524.4,4523.8,0.4237]
[1757639925833,0.5721337,4524.3,4523.7,0.23]
[1757639926030,0.5721337,4524.2,4523.8,0.4237]
[1757639926233,0.5721337,4524.1,4523.7,0.23]
[1757639926433,0.5721337,4524.0,4523.8,0.4237]
[1757639926633,0.4115,4524.4,4523.9,0.23]
[1757639926930,0.4115,4524.2,4523.9,0.23]
[1757639927132,0.57226988,4524.1,4524.0,0.4237]
[1757639927428,0.4115,4524.0,4523.5,0.1647]
[1757639927629,3.3682,4524.5,4523.6,0.23]
[1757639927831,0.98391028,4524.4,4523.6,0.6537]
[1757639928130,0.4115,4523.6,4522.7,3.6315]
[1757639928329,0.4115,4523.4,4522.7,3.6315]
[1757639928528,0.4115,4523.4,4522.7,3.2078]
[1757639928835,0.4115,4523.4,4522.8,0.6537]
[1757639929033,3.2078,4523.7,4523.0,0.1647]
[1757639929238,0.57264277,4523.6,4523.1,0.4237]
[1757639929534,0.98414277,4523.5,4523.1,0.4237]
[1757639929731,0.57282524,4523.4,4523.3,0.4237]
[1757639929937,3.6193,4523.7,4523.3,0.23]
[1757639930232,0.4115,4523.5,4523.4,0.6537]
[1757639930435,0.4115,4523.4,4523.0,0.4237]
[1757639930624,0.73322221,4523.5,4522.6,0.4237]
[1757639930625,3.2078,4523.1,4522.6,0.4237]
[1757639930829,3.2078,4523.1,4522.8,0.4237]
[1757639931030,3.2078,4523.1,4522.7,0.23]
[1757639931232,0.57327118,4523.0,4522.8,0.4237]
[1757639931439,0.4115,4523.9,4523.1,0.4237]
[1757639931641,0.1604,4523.0,4522.5,0.4237]
[1757639931940,0.57325277,4522.9,4522.5,0.4237]
[1757639932134,0.4115,4522.7,4522.5,0.4237]
[1757639932440,0.57325277,4522.6,4522.0,3.3725]
[1757639932631,0.4115,4522.4,4522.2,0.4237]
[1757639932833,0.4115,4522.4,4522.1,0.4237]
[1757639933335,0.4115,4522.4,4522.0,3.3725]
[1757639933336,0.4115,4522.4,4522.3,0.4237]
[1757639933541,0.98536217,4522.4,4522.3,0.6537]
[1757639933741,0.57386217,4522.4,4522.1,0.4237]
[1757639934038,3.2078,4522.7,4522.2,0.6537]
[1757639934039,0.57386217,4522.3,4522.2,0.6537]
[1757639934239,0.98536217,4522.3,4522.2,0.6537]
[1757639935243,1.51466217,4522.3,4522.2,0.9219]
[1757639936136,1.51466217,4522.3,4522.2,0.6919]
[1757639936336,0.4115,4522.2,4521.5,3.7962]
[1757639936540,0.2711,4521.6,4521.5,1.1087]
[1757639936732,0.2711,4521.6,4521.5,1.3387]
[1757639936942,0.57386217,4521.6,4521.5,1.3387]
[1757639937242,0.57386217,4521.6,4521.5,0.685]
[1757639937439,0.9408,4521.6,4521.5,0.7503]
[1757639937635,1.51466217,4521.6,4521.5,0.7503]
[1757639937832,1.51466217,4521.6,4521.0,3.7755]
[1757639938031,0.5126,4521.2,4521.1,0.9034]
[1757639938243,0.83136217,4521.2,4521.1,1.1717]
[1757639938746,0.57386217,4521.2,4521.1,0.9417]
[1757639938946,0.57386217,4521.2,4521.1,0.7687]
[1757639939137,0.57386217,4521.6,4521.1,0.7687]
[1757639939334,0.2575,4521.2,4521.1,0.7687]
[1757639939639,0.83136217,4521.2,4521.1,0.9417]
[1757639939946,0.83136217,4521.2,4521.1,1.1717]
[1757639940743,0.83136217,4521.2,4521.1,0.9417]
[1757639941146,1.47636217,4521.2,4521.1,0.9417]
[1757639941545,0.83136217,4521.2,4521.1,0.9417]
[1757639942045,0.57386217,4521.2,4521.1,0.9417]
[1757639942241,3.2078,4521.7,4521.2,0.403]
[1757639942432,0.57444519,4521.6,4521.3,0.403]
[1757639942637,0.5126,4521.4,4521.3,0.6734]
[1757639942947,0.57444519,4521.4,4521.3,0.9417]
[1757639943239,4.1103,4522.2,4522.1,0.6734]
[1757639943439,4.29467135,4522.2,4522.1,0.9417]
[1757639943639,3.7204,4522.2,4522.1,0.9417]
[1757639943840,4.1103,4522.2,4522.1,0.9417]
[1757639944240,4.1103,4522.2,4522.0,0.1675]
[1757639944241,3.4653,4522.7,4522.6,0.5387]
[1757639944437,4.03942115,4522.7,4522.6,0.9417]
[1757639944633,4.29452115,4522.7,4522.6,0.9417]
[1757639944839,4.68442115,4522.7,4522.6,0.9417]
[1757639945042,3.4653,4522.7,4522.6,0.2704]
[1757639945263,3.4653,4522.7,4522.6,0.9417]
[1757639945544,4.1103,4522.7,4522.6,0.9417]
[1757639945748,3.7204,4522.7,4522.6,0.9417]
[1757639946436,3.2078,4522.7,4522.6,0.9417]
[1757639947040,3.4653,4522.7,4522.6,0.9417]
[1757639947346,0.2575,4522.7,4522.6,0.9417]
[1757639947543,0.9025,4522.7,4522.6,0.2704]
[1757639947741,0.2575,4522.3,4522.2,0.2704]
[1757639948043,0.5126,4522.3,4522.2,1.1717]
[1757639948243,0.5126,4523.1,4523.0,0.9417]
[1757639948544,0.5126,4523.1,4523.0,1.1092]
[1757639949043,0.2575,4523.1,4523.0,1.1092]
[1757639949446,3.2078,4523.7,4523.1,0.403]
[1757639949648,3.2078,4523.7,4523.6,0.9417]
[1757639949849,3.2078,4524.4,4524.1,0.403]
[1757639950044,0.3899,4524.3,4523.6,0.403]
[1757639950553,0.3899,4524.3,4523.6,0.633]
[1757639950848,0.3899,4524.3,4523.6,0.403]
[1757639951947,3.2078,4524.4,4523.6,0.403]
[1757639952150,3.2078,4524.4,4524.1,0.403]
[1757639952342,0.3899,4524.7,4524.1,0.403]
[1757639953754,0.57439889,4524.6,4524.1,0.403]
[1757639953949,0.57439889,4524.5,4524.0,0.1675]
[1757639954155,0.3899,4524.7,4524.1,0.403]
[1757639954457,0.57438692,4524.6,4524.1,0.403]
[1757639954651,0.57438692,4524.5,4524.1,0.403]
[1757639954851,0.3899,4524.7,4524.1,0.403]
[1757639955052,0.57438691,4524.6,4524.1,0.403]
[1757639955356,1.08698691,4524.5,4524.4,0.6734]
[1757639956643,1.08698691,4524.5,4524.1,0.403]
[1757639956857,0.9025,4524.2,4524.1,0.6734]
[1757639958658,0.9025,4524.2,4524.1,0.9024]
[1757639960351,0.9025,4524.2,4524.1,1.1707]
[1757639960952,0.5126,4524.2,4524.1,1.1707]
[1757639961452,0.3899,4524.7,4524.2,0.403]
[1757639961647,0.9025,4524.7,4524.6,0.6734]
[1757639961859,1.47646299,4524.7,4524.6,0.6734]
[1757639963160,1.47646299,4524.7,4524.2,0.403]
[1757639963353,0.2575,4524.3,4524.2,0.5387]
[1757639963555,0.5126,4524.3,4524.2,0.9417]
[1757639965761,0.3899,4524.7,4524.2,0.9417]
[1757639965956,0.83160433,4524.6,4524.5,0.7062]
[1757639966156,0.83160433,4524.6,4524.5,1.1092]
[1757639966357,1.08670433,4524.6,4524.5,1.1092]
[1757639966556,1.47660433,4524.6,4524.5,1.1092]
[1757639967055,0.83160433,4524.6,4524.5,1.1092]
[1757639967359,0.83160671,4524.6,4524.5,1.1092]
[1757639967763,1.08670671,4524.6,4524.5,1.1092]
[1757639968264,3.6153,4525.3,4524.6,0.3997]
[1757639968562,0.82278113,4525.2,4525.1,0.9391]
[1757639968763,0.2485,4525.2,4525.1,0.9391]
[1757639968960,3.2078,4525.3,4525.2,0.9391]
[1757639969453,3.2078,4526.1,4525.2,0.9391]
[1757639969653,1.09044213,4526.0,4525.9,0.2703]
[1757639969855,1.09044213,4526.0,4525.9,0.9391]
[1757639970162,0.2485,4526.0,4525.9,0.9391]
[1757639973660,3.2078,4526.1,4526.0,1.0954]
[1757639973859,3.78204855,4526.1,4526.0,1.0954]
[1757639974558,3.2078,4526.1,4526.0,1.0954]
[1757639974756,3.2078,4526.8,4526.7,0.9391]
[1757639974960,4.70574309,4526.8,4526.7,1.1681]
[1757639975272,4.70574309,4526.8,4526.7,0.899]
[1757639975662,4.70574309,4526.8,4526.1,0.3997]
[1757639975862,1.49794309,4526.7,4526.6,0.229]
[1757639976063,1.49788476,4526.7,4526.6,0.229]
[1757639976258,0.82268476,4526.7,4526.6,1.1681]
[1757639976459,0.57418476,4526.7,4526.6,1.1681]
[1757639977869,3.2078,4527.5,4526.6,0.7684]
[1757639978065,0.57407624,4527.4,4526.7,0.3997]
[1757639978261,1.49777624,4527.3,4527.2,0.67]
[1757639980573,1.49777624,4527.3,4527.2,0.9391]
[1757639981266,1.09027624,4527.3,4527.2,0.9391]
[1757639981967,0.57407624,4527.3,4527.2,1.1681]
[1757639985972,0.57407624,4527.3,4527.2,0.9391]
[1757639986275,0.57407624,4527.3,4527.2,1.1681]
[1757639986775,0.57407624,4527.3,4527.2,4.9391]
[1757639986971,1.49777624,4527.3,4527.2,1.1681]
[1757639987479,1.49777624,4527.3,4527.2,0.9391]
[1757639987671,1.49777624,4527.3,4527.2,0.899]
[1757639988174,1.49777624,4527.3,4527.2,0.67]
[1757639988369,8.92645625,4527.3,4526.1,0.3997]
[1757639988569,0.1352,4527.5,4526.1,0.9391]
[1757639988570,0.5162,4526.2,4526.1,0.9391]
[1757639988774,0.2485,4526.2,4526.1,1.1681]
[1757639988971,0.57407624,4526.2,4526.1,0.7684]
[1757639989669,0.57407624,4526.2,4526.1,1.1681]
[1757639990166,0.57407624,4526.2,4526.1,0.9391]
[1757639990383,0.82257624,4526.2,4526.1,1.1681]
[1757639991092,0.82257624,4526.2,4526.1,0.9391]
[1757639991291,0.57407624,4526.2,4526.1,1.1681]
[1757639993685,0.4075,4526.7,4526.2,0.3997]
[1757639993883,1.09014812,4526.6,4526.5,0.9391]
[1757639994196,1.49764812,4526.6,4526.5,0.9391]
[1757639994492,1.49764812,4526.6,4526.5,1.1681]
[1757639994688,1.09014812,4526.6,4526.5,1.0954]
[1757639994888,1.09014812,4526.6,4526.5,1.3244]
[1757639995197,1.49764812,4526.6,4526.5,1.3244]
[1757639995396,1.49764812,4526.6,4526.5,1.1681]
[1757639995689,0.2485,4526.1,4526.0,0.4266]
[1757639995880,0.2485,4526.1,4526.0,1.3244]
[1757639995881,0.9237,4526.1,4526.0,1.3244]
[1757639996088,1.09074225,4526.1,4526.0,1.0954]
[1757639996288,1.09078002,4526.1,4526.0,1.3244]
[1757639996484,0.4075,4525.8,4525.1,0.3997]
[1757639996689,0.149,4526.0,4525.1,0.3997]
[1757639996690,0.9237,4525.2,4525.1,0.67]
[1757639996984,0.9237,4525.2,4525.1,1.1681]